[Event "NJSK 2026 Jeugd B"]
[Site "Helmond, Netherlands"]
[Date "2026.05.01"]
[Round "7.9"]
[White "Yantur, Arda"]
[Black "Van Haaften, Jelle"]
[Result "1-0"]
[TimeControl "90min/40moves + 30min + 30sec/move"]
[WhiteTitle "-"]
[BlackTitle "-"]
[WhiteFideId "40102041"]
[BlackFideId "1096281"]
[WhiteElo "1750"]
[BlackElo "1882"]

1. e4 {[%clk 01:30:58]} {[%emt 00:00:01]} c6 {[%clk 01:30:55]} {[%emt
00:00:05]} 2. d4 {[%clk 01:31:25]} {[%emt 00:00:03]} d5 {[%clk 01:31:20]}
{[%emt 00:00:05]} 3. exd5 {[%clk 01:31:50]} {[%emt 00:00:06]} cxd5 {[%clk
01:31:39]} {[%emt 00:00:09]} 4. Bd3 {[%clk 01:32:00]} {[%emt 00:00:22]} Nc6
{[%clk 01:32:00]} {[%emt 00:00:08]} 5. c3 {[%clk 01:32:27]} {[%emt 00:00:03]}
Qc7 {[%clk 01:32:24]} {[%emt 00:00:06]} 6. Ne2 {[%clk 01:31:55]} {[%emt
00:01:03]} Bg4 {[%clk 01:32:47]} {[%emt 00:00:06]} 7. f3 {[%emt 00:01:54]} Bd7
{[%clk 01:32:34]} 8. Bf4 {[%clk 01:31:34]} {[%emt 00:00:09]} e5 {[%clk
01:32:58]} {[%emt 00:00:06]} 9. dxe5 {[%clk 01:29:29]} {[%emt 00:02:36]} Nxe5
{[%clk 01:33:21]} {[%emt 00:00:06]} 10. O-O {[%clk 01:25:43]} {[%emt 00:04:17]}
Bd6 {[%clk 01:33:09]} {[%emt 00:00:41]} 11. Bg3 {[%clk 01:22:13]} {[%emt
00:04:00]} Nf6 {[%clk 01:29:20]} {[%emt 00:04:19]} 12. a4 {[%clk 01:21:07]}
{[%emt 00:01:38]} O-O {[%clk 01:24:05]} {[%emt 00:05:42]} 13. Qc2 {[%clk
01:17:02]} {[%emt 00:04:37]} g6 {[%clk 00:57:58]} {[%emt 00:26:37]} 14. Na3
{[%clk 01:02:58]} {[%emt 00:14:34]} Bxa4 {[%clk 00:50:24]} {[%emt 00:08:04]} 15.
Qxa4 {[%clk 00:59:56]} {[%emt 00:03:32]} Nxd3 {[%clk 00:50:17]} {[%emt
00:00:37]} 16. Nb5 {[%clk 00:45:04]} {[%emt 00:15:22]} Qb6+ {[%clk 00:49:55]}
{[%emt 00:00:52]} 17. Ned4 {[%clk 00:44:29]} {[%emt 00:01:06]} Bxg3 {[%clk
00:48:46]} 18. hxg3 {[%clk 00:44:21]} {[%emt 00:02:16]} Nxb2 {[%clk 00:39:13]}
{[%emt 00:10:03]} 19. Qa2 {[%clk 00:43:31]} {[%emt 00:01:21]} Nc4 {[%clk
00:38:13]} {[%emt 00:01:30]} 20. Rfb1 {[%clk 00:43:02]} {[%emt 00:00:58]} a6
{[%clk 00:37:05]} {[%emt 00:01:39]} 21. Na3 {[%clk 00:43:08]} {[%emt 00:00:24]}
Qc7 {[%clk 00:37:21]} {[%emt 00:00:13]} 22. Nac2 {[%clk 00:42:40]} {[%emt
00:00:58]} b5 {[%clk 00:36:54]} {[%emt 00:00:57]} 23. Nb4 {[%clk 00:42:53]}
{[%emt 00:00:17]} Qxg3 {[%clk 00:31:31]} {[%emt 00:05:53]} 24. Nxa6 {[%clk
00:41:48]} {[%emt 00:01:36]} Qf4 {[%clk 00:21:55]} {[%emt 00:10:07]} 25. Nxb5
{[%clk 00:39:54]} {[%emt 00:02:24]} h5 {[%clk 00:17:26]} {[%emt 00:05:00]} 26.
Qf2 {[%clk 00:38:36]} {[%emt 00:01:46]} Rac8 {[%clk 00:14:02]} {[%emt
00:03:55]} 27. Rd1 {[%clk 00:38:23]} {[%emt 00:00:42]} Rfe8 {[%clk 00:13:25]}
{[%emt 00:01:08]} 28. Rd4 {[%clk 00:38:20]} {[%emt 00:00:34]} Qg5 {[%clk
00:13:17]} {[%emt 00:00:37]} 29. Na7 {[%clk 00:35:21]} {[%emt 00:03:28]} Rcd8
{[%clk 00:12:33]} {[%emt 00:01:15]} 30. Nc7 {[%clk 00:31:31]} {[%emt 00:04:18]}
Rf8 {[%clk 00:07:35]} {[%emt 00:05:30]} 31. Nc6 {[%clk 00:29:09]} {[%emt
00:02:52]} Rd7 {[%clk 00:06:52]} {[%emt 00:01:13]} 32. Nxd5 {[%clk 00:27:28]}
{[%emt 00:02:11]} Rxd5 {[%clk 00:06:45]} {[%emt 00:00:37]} 33. Ne7+ {[%clk
00:27:38]} {[%emt 00:00:20]} Kg7 {[%clk 00:06:45]} {[%emt 00:00:30]} 34. Nxd5
{[%clk 00:27:39]} {[%emt 00:00:29]} Nxd5 {[%clk 00:07:13]} {[%emt 00:00:03]} 35.
Rxc4 {[%clk 00:27:41]} {[%emt 00:00:27]} Rd8 {[%clk 00:07:13]} {[%emt
00:00:31]} 36. Rc5 {[%clk 00:26:22]} {[%emt 00:01:50]} Qf4 {[%clk 00:06:16]}
{[%emt 00:01:27]} 37. Rd1 {[%clk 00:25:48]} {[%emt 00:01:03]} Nxc3 {[%clk
00:02:46]} {[%emt 00:04:00]} 38. Rxd8 {[%clk 00:25:00]} {[%emt 00:01:18]} Qc1+
{[%clk 00:03:15]} {[%emt 00:00:01]} 39. Kh2 {[%clk 00:25:13]} {[%emt 00:00:17]}
Qf4+ {[%clk 00:03:00]} {[%emt 00:00:45]} 40. g3 {[%clk 00:25:05]} {[%emt
00:00:37]} Ne4 {[%clk 00:02:49]} {[%emt 00:00:41]} 41. Qd4+ {[%clk 00:25:12]}
{[%emt 00:00:22]} 1-0

[Event "NJSK 2026 Jeugd B"]
[Site "Helmond, Netherlands"]
[Date "2026.05.01"]
[Round "7.10"]
[White "Okita, Shinsaku"]
[Black "Darie, Aden"]
[Result "0-1"]
[TimeControl "90min/40moves + 30min + 30sec/move"]
[WhiteTitle "-"]
[BlackTitle "-"]
[WhiteFideId "1094823"]
[BlackFideId "1094831"]
[WhiteElo "1899"]
[BlackElo "2150"]

1. e4 {[%clk 01:30:59]} {[%emt 00:00:01]} Nf6 {[%clk 01:30:27]} {[%emt
00:00:32]} 2. e5 {[%clk 01:31:04]} {[%emt 00:00:26]} Nd5 {[%clk 01:30:50]}
{[%emt 00:00:06]} 3. Nf3 {[%clk 01:30:54]} {[%emt 00:00:40]} e6 {[%emt
00:01:12]} 4. d4 {[%clk 01:30:28]} c5 {[%clk 01:31:26]} {[%emt 00:00:07]} 5. c4
{[%clk 01:28:54]} {[%emt 00:02:05]} Nc7 {[%clk 01:29:28]} {[%emt 00:02:28]} 6.
Be2 {[%clk 01:26:15]} {[%emt 00:03:10]} d5 {[%clk 01:29:07]} {[%emt 00:00:50]}
7. exd6 {[%clk 01:25:06]} {[%emt 00:01:39]} Bxd6 {[%clk 01:29:11]} {[%emt
00:00:26]} 8. dxc5 {[%clk 01:24:31]} {[%emt 00:01:05]} Bxc5 {[%clk 01:29:23]}
{[%emt 00:00:17]} 9. Qxd8+ {[%clk 01:24:18]} {[%emt 00:00:44]} Kxd8 {[%clk
01:29:44]} {[%emt 00:00:08]} 10. Ng5 {[%clk 01:19:56]} {[%emt 00:04:53]} Ke7
{[%clk 01:28:08]} {[%emt 00:02:05]} 11. Ne4 {[%clk 01:16:39]} {[%emt 00:03:48]}
Bb4+ {[%clk 01:28:17]} {[%emt 00:00:21]} 12. Nbd2 {[%clk 01:14:34]} {[%emt
00:02:35]} f5 {[%clk 01:25:09]} {[%emt 00:03:38]} 13. a3 {[%clk 01:12:18]}
{[%emt 00:02:47]} Bxd2+ {[%clk 01:21:10]} {[%emt 00:04:27]} 14. Nxd2 {[%clk
01:11:16]} {[%emt 00:01:33]} Nc6 {[%clk 01:21:31]} {[%emt 00:00:08]} 15. Nf3
{[%clk 01:07:59]} {[%emt 00:03:47]} e5 {[%clk 01:21:09]} {[%emt 00:00:53]} 16.
Be3 {[%clk 01:05:35]} {[%emt 00:02:54]} Ne6 {[%clk 01:17:53]} {[%emt 00:03:45]}
17. O-O-O {[%clk 01:01:02]} {[%emt 00:05:03]} f4 {[%clk 01:16:54]} {[%emt
00:01:30]} 18. Bd2 {[%clk 01:00:45]} {[%emt 00:00:47]} Ned4 {[%clk 01:15:19]}
{[%emt 00:02:04]} 19. Nxd4 {[%clk 01:00:42]} {[%emt 00:00:33]} Nxd4 {[%clk
01:15:42]} {[%emt 00:00:08]} 20. Bb4+ {[%clk 01:00:46]} {[%emt 00:00:27]} Kf6
{[%clk 01:15:54]} {[%emt 00:00:17]} 21. Bd3 {[%clk 00:59:07]} {[%emt 00:02:09]}
Be6 {[%clk 01:12:15]} {[%emt 00:04:09]} 22. Bc3 {[%clk 00:57:16]} {[%emt
00:02:21]} Rhd8 {[%clk 01:11:24]} {[%emt 00:01:21]} 23. Bxd4 {[%clk 00:44:17]}
{[%emt 00:13:29]} Rxd4 {[%clk 01:09:55]} {[%emt 00:01:59]} 24. Be2 {[%clk
00:41:30]} {[%emt 00:03:18]} Rad8 {[%clk 01:09:17]} {[%emt 00:01:07]} 25. Rxd4
{[%clk 00:41:01]} {[%emt 00:00:59]} Rxd4 {[%emt 00:01:54]} 26. Rd1 {[%clk
00:39:41]} {[%emt 00:00:02]} Rxd1+ {[%clk 01:08:56]} {[%emt 00:01:15]} 27. Kxd1
{[%clk 00:40:00]} {[%emt 00:00:11]} e4 {[%clk 01:09:21]} {[%emt 00:00:05]} 28.
Kd2 {[%clk 00:39:44]} {[%emt 00:00:46]} Ke5 {[%clk 01:09:33]} {[%emt 00:00:18]}
29. Kc3 {[%clk 00:40:05]} {[%emt 00:00:09]} g5 {[%clk 01:08:50]} {[%emt
00:01:12]} 30. c5 {[%clk 00:39:25]} {[%emt 00:01:11]} g4 {[%clk 01:07:40]}
{[%emt 00:01:26]} 31. b4 {[%clk 00:38:15]} {[%emt 00:01:54]} f3 {[%clk
01:08:02]} {[%emt 00:00:08]} 32. gxf3 {[%clk 00:36:49]} {[%emt 00:01:57]} gxf3
{[%clk 01:05:53]} {[%emt 00:02:39]} 33. Bf1 {[%clk 00:36:12]} {[%emt 00:01:07]}
a6 {[%clk 01:06:10]} {[%emt 00:00:12]} 34. c6 {[%clk 00:32:05]} {[%emt
00:04:37]} bxc6 {[%clk 01:04:08]} {[%emt 00:02:32]} 35. Bxa6 {[%clk 00:32:04]}
{[%emt 00:00:32]} e3 {[%clk 01:03:44]} {[%emt 00:00:53]} 36. Kd3 {[%clk
00:30:30]} {[%emt 00:02:05]} e2 {[%clk 01:03:56]} {[%emt 00:00:17]} 37. Kd2
{[%clk 00:30:48]} {[%emt 00:00:12]} Kd4 {[%clk 01:03:07]} {[%emt 00:01:18]} 38.
Bd3 {[%clk 00:28:23]} {[%emt 00:02:56]} e1=B+ {[%clk 01:02:50]} {[%emt
00:00:48]} 39. Kxe1 {[%clk 00:28:45]} {[%emt 00:00:08]} Kxd3 {[%clk 01:03:10]}
{[%emt 00:00:09]} 40. a4 {[%clk 00:29:11]} {[%emt 00:00:04]} Bc4 {[%clk
01:03:20]} {[%emt 00:00:19]} 41. b5 {[%clk 00:29:06]} {[%emt 00:00:36]} cxb5
{[%clk 01:03:23]} {[%emt 00:00:27]} 42. axb5 {[%clk 00:29:33]} {[%emt
00:00:03]} Bxb5 {[%clk 01:03:43]} {[%emt 00:00:10]} 0-1

[Event "NJSK 2026 Jeugd B"]
[Site "Helmond, Netherlands"]
[Date "2026.05.01"]
[Round "8.1"]
[White "Kurt, Sascha"]
[Black "De Jong, Lode"]
[Result "1-0"]
[TimeControl "90min/40moves + 30min + 30sec/move"]
[WhiteTitle "-"]
[BlackTitle "-"]
[WhiteFideId "1082647"]
[BlackFideId "40101860"]
[WhiteElo "2280"]
[BlackElo "1902"]

1. e4 {[%clk 00:05:05]} c5 {[%clk 00:05:05]} {[%emt 00:00:01]} 2. Nf3 {[%clk
00:05:07]} {[%emt 00:00:01]} d6 {[%clk 00:05:08]} 3. d4 {[%clk 00:05:09]}
{[%emt 00:00:01]} cxd4 {[%clk 00:05:10]} 4. Nxd4 {[%clk 00:05:11]} Nf6 {[%clk
00:05:11]} 5. Nc3 {[%clk 00:05:12]} {[%emt 00:00:02]} a6 {[%clk 00:05:14]} 6.
h3 {[%clk 00:05:14]} {[%emt 00:00:02]} e5 {[%clk 00:05:15]} {[%emt 00:00:03]} 7.
Nb3 {[%clk 00:05:15]} {[%emt 00:00:02]} Be7 {[%clk 00:05:15]} {[%emt 00:00:02]}
8. g4 {[%clk 00:05:15]} {[%emt 00:00:03]} h6 {[%clk 00:05:15]} {[%emt
00:00:04]} 9. Be3 {[%clk 00:05:16]} {[%emt 00:00:02]} b5 {[%clk 00:05:11]}
{[%emt 00:00:08]} 10. a4 {[%clk 00:05:12]} {[%emt 00:00:06]} b4 {[%clk
00:05:06]} {[%emt 00:00:08]} 11. Nd5 {[%clk 00:05:10]} {[%emt 00:00:05]} Bb7
{[%clk 00:04:44]} {[%emt 00:00:24]} 12. Bb6 {[%clk 00:04:47]} {[%emt 00:00:27]}
Qc8 {[%clk 00:04:46]} {[%emt 00:00:01]} 13. Nc7+ {[%clk 00:04:36]} {[%emt
00:00:14]} Kf8 {[%clk 00:04:48]} 14. f3 {[%clk 00:04:08]} {[%emt 00:00:32]}
Nbd7 {[%clk 00:04:43]} {[%emt 00:00:08]} 15. Nxa8 {[%clk 00:04:07]} {[%emt
00:00:04]} Qxa8 {[%clk 00:04:37]} {[%emt 00:00:08]} 16. Bf2 {[%clk 00:03:51]}
{[%emt 00:00:18]} Bxe4 {[%clk 00:04:35]} {[%emt 00:00:06]} 17. Bg2 {[%clk
00:03:29]} {[%emt 00:00:24]} Bc6 {[%clk 00:03:48]} {[%emt 00:00:51]} 18. O-O
{[%clk 00:03:23]} {[%emt 00:00:09]} g6 {[%clk 00:03:49]} {[%emt 00:00:02]} 19.
Na5 {[%clk 00:03:04]} {[%emt 00:00:22]} Bd5 {[%clk 00:03:41]} {[%emt 00:00:12]}
20. c4 {[%clk 00:03:02]} {[%emt 00:00:04]} bxc3 {[%clk 00:03:42]} {[%emt
00:00:02]} 21. bxc3 {[%clk 00:03:05]} Qd8 {[%clk 00:03:35]} {[%emt 00:00:09]}
22. Nb3 {[%clk 00:02:52]} {[%emt 00:00:17]} Kg7 {[%clk 00:02:45]} {[%emt
00:00:53]} 23. Nd2 {[%clk 00:02:53]} {[%emt 00:00:02]} Qa5 {[%clk 00:02:31]}
{[%emt 00:00:16]} 24. c4 {[%clk 00:02:51]} {[%emt 00:00:05]} Bc6 {[%clk
00:02:22]} {[%emt 00:00:13]} 25. Qc2 {[%clk 00:02:30]} {[%emt 00:00:24]} Rc8
{[%clk 00:02:21]} {[%emt 00:00:03]} 26. Rfb1 {[%clk 00:02:16]} {[%emt
00:00:18]} d5 {[%clk 00:01:24]} {[%emt 00:01:00]} 27. cxd5 {[%clk 00:01:59]}
{[%emt 00:00:20]} Nxd5 {[%clk 00:01:04]} {[%emt 00:00:23]} 28. Nc4 {[%clk
00:02:01]} {[%emt 00:00:01]} Qd8 {[%clk 00:01:01]} {[%emt 00:00:05]} 29. Qd2
{[%clk 00:01:48]} {[%emt 00:00:16]} Nf4 {[%clk 00:00:54]} {[%emt 00:00:11]} 30.
Be3 {[%clk 00:01:39]} {[%emt 00:00:12]} Bf6 {[%clk 00:00:12]} {[%emt 00:00:45]}
31. Nd6 {[%clk 00:01:36]} {[%emt 00:00:06]} Rb8 {[%clk 00:00:09]} {[%emt
00:00:05]} 32. Rxb8 {[%clk 00:01:29]} {[%emt 00:00:10]} Qxb8 {[%clk 00:00:11]}
33. a5 {[%clk 00:01:16]} {[%emt 00:00:17]} Qb3 {[%emt 00:00:23]} 34. Re1 {[%clk
00:00:58]} g5 {[%clk 00:00:12]} {[%emt 00:00:03]} 35. Nf5+ {[%clk 00:01:00]}
{[%emt 00:00:02]} Kh7 {[%clk 00:00:10]} {[%emt 00:00:05]} 36. Kh1 {[%clk
00:00:37]} {[%emt 00:00:26]} Qd5 {[%clk 00:00:09]} {[%emt 00:00:04]} 37. Qc2
{[%clk 00:00:29]} {[%emt 00:00:11]} Bd8 {[%clk 00:00:06]} {[%emt 00:00:05]} 38.
Bxf4 {[%clk 00:00:26]} {[%emt 00:00:06]} 1-0

[Event "NJSK 2026 Jeugd B"]
[Site "Helmond, Netherlands"]
[Date "2026.05.01"]
[Round "8.2"]
[White "Groenewoud, Joel"]
[Black "Zecha, Oscar"]
[Result "0-1"]
[TimeControl "90min/40moves + 30min + 30sec/move"]
[WhiteTitle "-"]
[BlackTitle "-"]
[WhiteFideId "1087746"]
[BlackFideId "1073826"]
[WhiteElo "2114"]
[BlackElo "2120"]

1. e4 {[%clk 00:05:05]} e5 {[%clk 00:05:06]} 2. Nf3 {[%clk 00:05:07]} {[%emt
00:00:01]} Nc6 {[%clk 00:05:08]} 3. Bb5 {[%clk 00:05:09]} {[%emt 00:00:01]} a6
{[%clk 00:05:10]} 4. Ba4 {[%clk 00:05:11]} Nf6 {[%clk 00:05:12]} {[%emt
00:00:01]} 5. O-O {[%clk 00:05:10]} {[%emt 00:00:04]} d6 {[%clk 00:05:13]}
{[%emt 00:00:01]} 6. Re1 {[%clk 00:05:02]} {[%emt 00:00:11]} g6 {[%clk
00:05:11]} {[%emt 00:00:05]} 7. c3 {[%clk 00:05:02]} {[%emt 00:00:04]} Bg7
{[%clk 00:04:59]} {[%emt 00:00:15]} 8. d4 {[%clk 00:05:03]} {[%emt 00:00:01]}
Bd7 {[%clk 00:05:01]} {[%emt 00:00:02]} 9. Nbd2 {[%clk 00:04:55]} {[%emt
00:00:10]} O-O {[%clk 00:04:57]} {[%emt 00:00:07]} 10. h3 {[%clk 00:04:57]}
{[%emt 00:00:01]} Re8 {[%clk 00:04:55]} {[%emt 00:00:05]} 11. Bc2 {[%clk
00:04:52]} {[%emt 00:00:07]} a5 {[%clk 00:04:51]} {[%emt 00:00:07]} 12. Nf1
{[%clk 00:04:46]} {[%emt 00:00:09]} a4 {[%clk 00:04:47]} {[%emt 00:00:08]} 13.
a3 {[%clk 00:04:36]} {[%emt 00:00:12]} b5 {[%clk 00:04:36]} {[%emt 00:00:14]}
14. Ng3 {[%clk 00:04:26]} {[%emt 00:00:14]} Na5 {[%clk 00:04:28]} {[%emt
00:00:11]} 15. Bg5 {[%clk 00:03:22]} {[%emt 00:01:06]} h6 {[%clk 00:04:29]}
{[%emt 00:00:02]} 16. Be3 {[%clk 00:03:24]} {[%emt 00:00:01]} Nc4 {[%clk
00:04:09]} {[%emt 00:00:23]} 17. Qc1 {[%clk 00:03:20]} {[%emt 00:00:07]} Nxe3
{[%clk 00:04:10]} {[%emt 00:00:02]} 18. Qxe3 {[%clk 00:03:20]} {[%emt
00:00:02]} c6 {[%clk 00:03:24]} {[%emt 00:00:50]} 19. Rad1 {[%clk 00:03:19]}
{[%emt 00:00:04]} Qc7 {[%clk 00:03:19]} {[%emt 00:00:08]} 20. Ne2 {[%clk
00:02:09]} {[%emt 00:01:13]} exd4 {[%clk 00:02:38]} {[%emt 00:00:44]} 21. cxd4
{[%clk 00:01:47]} {[%emt 00:00:25]} Nxe4 {[%clk 00:02:07]} {[%emt 00:00:34]} 22.
Bxe4 {[%clk 00:01:41]} {[%emt 00:00:08]} d5 {[%clk 00:02:09]} {[%emt 00:00:02]}
23. Qf4 {[%clk 00:00:59]} {[%emt 00:00:46]} Qxf4 {[%clk 00:02:09]} {[%emt
00:00:02]} 24. Nxf4 {[%clk 00:00:58]} {[%emt 00:00:03]} dxe4 {[%clk 00:02:04]}
{[%emt 00:00:08]} 25. Ne5 {[%clk 00:00:51]} {[%emt 00:00:11]} Rad8 {[%clk
00:01:09]} {[%emt 00:00:58]} 26. g4 {[%clk 00:00:10]} {[%emt 00:00:43]} Kf8
{[%clk 00:00:19]} {[%emt 00:00:54]} 27. Rxe4 {[%clk 00:00:09]} {[%emt
00:00:04]} Bc8 {[%clk 00:00:08]} {[%emt 00:00:15]} 28. Rde1 {[%clk 00:00:05]}
{[%emt 00:00:06]} Bb7 {[%clk 00:00:06]} {[%emt 00:00:05]} 29. Nf3 {[%clk
00:00:04]} {[%emt 00:00:05]} Rxe4 {[%clk 00:00:06]} {[%emt 00:00:03]} 30. Rxe4
{[%clk 00:00:05]} {[%emt 00:00:01]} c5 {[%clk 00:00:07]} {[%emt 00:00:02]} 31.
d5 {[%clk 00:00:07]} {[%emt 00:00:01]} Bxd5 {[%clk 00:00:08]} {[%emt 00:00:02]}
32. Nxd5 {[%clk 00:00:08]} {[%emt 00:00:02]} Rxd5 {[%clk 00:00:10]} 33. Kg2
{[%clk 00:00:07]} {[%emt 00:00:04]} Bxb2 {[%clk 00:00:10]} {[%emt 00:00:03]} 34.
Re3 {[%clk 00:00:08]} {[%emt 00:00:02]} b4 {[%clk 00:00:09]} {[%emt 00:00:05]}
0-1

[Event "NJSK 2026 Jeugd B"]
[Site "Helmond, Netherlands"]
[Date "2026.05.01"]
[Round "8.3"]
[White "Baarspul, Bram"]
[Black "Aravindhan, Achyuth"]
[Result "1-0"]
[TimeControl "90min/40moves + 30min + 30sec/move"]
[WhiteTitle "-"]
[BlackTitle "-"]
[WhiteFideId "40106187"]
[BlackFideId "1084216"]
[WhiteElo "2177"]
[BlackElo "2277"]

1. e4 {[%clk 00:05:03]} {[%emt 00:00:02]} c5 {[%clk 00:05:06]} 2. Nf3 {[%clk
00:05:05]} {[%emt 00:00:01]} Nc6 {[%clk 00:05:09]} 3. Bb5 {[%clk 00:05:07]} g6
{[%clk 00:05:11]} 4. O-O {[%clk 00:05:08]} {[%emt 00:00:01]} Bg7 {[%clk
00:05:14]} 5. c3 {[%clk 00:05:07]} {[%emt 00:00:05]} a6 {[%clk 00:05:17]} 6.
Bxc6 {[%clk 00:05:04]} {[%emt 00:00:06]} dxc6 {[%clk 00:05:19]} 7. d3 {[%clk
00:05:06]} Nf6 {[%clk 00:05:19]} {[%emt 00:00:03]} 8. Qc2 {[%clk 00:04:56]}
{[%emt 00:00:13]} O-O {[%clk 00:05:20]} {[%emt 00:00:02]} 9. Be3 {[%clk
00:04:57]} {[%emt 00:00:02]} b6 {[%clk 00:05:22]} {[%emt 00:00:03]} 10. h3
{[%clk 00:04:57]} {[%emt 00:00:03]} a5 {[%clk 00:05:22]} {[%emt 00:00:03]} 11.
d4 {[%clk 00:04:39]} {[%emt 00:00:20]} Nd7 {[%clk 00:04:35]} {[%emt 00:00:50]}
12. Rd1 {[%clk 00:04:20]} {[%emt 00:00:22]} Qc7 {[%clk 00:04:35]} {[%emt
00:00:03]} 13. dxc5 {[%clk 00:03:53]} {[%emt 00:00:30]} Nxc5 {[%clk 00:04:37]}
14. Bxc5 {[%clk 00:03:54]} {[%emt 00:00:02]} bxc5 {[%clk 00:04:39]} 15. Nbd2
{[%clk 00:03:47]} {[%emt 00:00:10]} Ba6 {[%clk 00:03:49]} {[%emt 00:00:55]} 16.
c4 {[%clk 00:03:44]} {[%emt 00:00:06]} Rab8 {[%clk 00:03:40]} {[%emt 00:00:12]}
17. Rab1 {[%clk 00:03:37]} {[%emt 00:00:11]} Rfd8 {[%clk 00:03:08]} {[%emt
00:00:35]} 18. b3 {[%clk 00:03:22]} {[%emt 00:00:16]} h6 {[%clk 00:02:17]}
{[%emt 00:00:54]} 19. Re1 {[%clk 00:03:12]} {[%emt 00:00:14]} Bc8 {[%clk
00:02:14]} {[%emt 00:00:06]} 20. Rbd1 {[%clk 00:02:51]} {[%emt 00:00:23]} a4
{[%clk 00:02:06]} {[%emt 00:00:11]} 21. e5 {[%clk 00:02:11]} {[%emt 00:00:43]}
Bf5 {[%clk 00:02:00]} {[%emt 00:00:10]} 22. Qc1 {[%clk 00:01:27]} {[%emt
00:00:46]} Qa5 {[%clk 00:01:03]} {[%emt 00:01:00]} 23. Qa3 {[%clk 00:00:42]}
{[%emt 00:00:47]} Bc2 {[%clk 00:00:36]} {[%emt 00:00:31]} 24. Rc1 {[%clk
00:00:41]} {[%emt 00:00:04]} Bf5 {[%clk 00:00:14]} {[%emt 00:00:25]} 25. Ne4
{[%clk 00:00:26]} {[%emt 00:00:18]} Bxe4 {[%clk 00:00:12]} {[%emt 00:00:06]} 26.
Rxe4 {[%clk 00:00:27]} Qb4 {[%clk 00:00:10]} {[%emt 00:00:05]} 27. Qxa4 {[%clk
00:00:10]} {[%emt 00:00:20]} Qxa4 {[%clk 00:00:07]} {[%emt 00:00:05]} 28. bxa4
{[%clk 00:00:13]} {[%emt 00:00:01]} Ra8 {[%clk 00:00:05]} {[%emt 00:00:05]} 29.
Rc2 {[%clk 00:00:10]} {[%emt 00:00:06]} Rxa4 {[%clk 00:00:07]} 30. Kh2 {[%clk
00:00:11]} Rda8 {[%clk 00:00:09]} {[%emt 00:00:02]} 31. Ree2 {[%clk 00:00:12]}
{[%emt 00:00:02]} e6 {[%clk 00:00:09]} {[%emt 00:00:04]} 32. Red2 {[%clk
00:00:12]} {[%emt 00:00:02]} Bf8 {[%clk 00:00:08]} {[%emt 00:00:04]} 33. Kg3
{[%clk 00:00:08]} {[%emt 00:00:07]} Be7 {[%clk 00:00:04]} {[%emt 00:00:06]} 34.
Kf4 {[%clk 00:00:08]} {[%emt 00:00:03]} Kg7 {[%clk 00:00:07]} {[%emt 00:00:01]}
35. Ke4 {[%clk 00:00:07]} {[%emt 00:00:04]} f5+ {[%clk 00:00:06]} {[%emt
00:00:04]} 36. exf6+ {[%clk 00:00:08]} {[%emt 00:00:02]} Kxf6 {[%clk 00:00:08]}
37. g4 {[%clk 00:00:09]} {[%emt 00:00:04]} Rb4 {[%clk 00:00:07]} {[%emt
00:00:03]} 38. Ne5 {[%clk 00:00:09]} {[%emt 00:00:03]} Bf8 {[%clk 00:00:05]}
{[%emt 00:00:05]} 39. Nxc6 {[%clk 00:00:10]} {[%emt 00:00:03]} Rba4 {[%clk
00:00:07]} {[%emt 00:00:01]} 40. Ne5 {[%clk 00:00:10]} {[%emt 00:00:02]} Ra3
{[%clk 00:00:07]} {[%emt 00:00:03]} 41. Rd7 {[%clk 00:00:10]} {[%emt 00:00:02]}
Rxh3 {[%clk 00:00:05]} {[%emt 00:00:05]} 42. Rf7+ {[%clk 00:00:11]} {[%emt
00:00:03]} Kg5 {[%clk 00:00:07]} 43. f3 {[%clk 00:00:07]} {[%emt 00:00:06]} Rh1
{[%clk 00:00:07]} {[%emt 00:00:03]} 44. f4+ {[%clk 00:00:07]} {[%emt 00:00:03]}
Kh4 {[%clk 00:00:07]} {[%emt 00:00:03]} 45. Nxg6 {[%clk 00:00:09]} Kxg4 {[%clk
00:00:07]} {[%emt 00:00:03]} 46. Nxf8 {[%clk 00:00:08]} {[%emt 00:00:04]} Ra3
{[%clk 00:00:05]} {[%emt 00:00:06]} 47. Rg7 {[%clk 00:00:09]} {[%emt 00:00:02]}
Kh5 {[%clk 00:00:06]} {[%emt 00:00:01]} 48. Nxe6 {[%clk 00:00:09]} {[%emt
00:00:03]} Re1+ {[%emt 00:00:06]} 49. Kf5 {[%clk 00:00:08]} {[%emt 00:00:02]}
Ra1 {[%clk 00:00:00]} {[%emt 00:00:05]} 50. Rh2 1-0